Cogmind - Beta 10.2 @@@ ROGUE MODE // 2021.02.25 @ 19:32:42 Player: WayneKnight Result: Self-destructed Performance ------------- Evolutions (1) 500 Regions Visited (5) 1000 Robots Destroyed (53) 265 Value Destroyed (1638) 1638 Prototype IDs (29) 580 Alien Tech Used (0) 0 Bonus (404) 404 TOTAL SCORE: 4387 Bonus ------- High Alert Combat Kills 8 Follower Combat Kills 96 Aligned with FarCom 300 Cogmind --------- Core Integrity 294/400 Matter 300/300 Energy 265/265 System Corruption 0% Temperature Cool (0) Movement Treading (180) Ox1 Location -9/Exiles Parts ------- > --- POWER (1) -------- Improved Ion Engine > --- PROPULSION (2) --- Light Treads Improved Treads > --- UTILITY (4) ------ High-capacity Storage Unit High-capacity Storage Unit Light Armor Plating Hardened Light Armor Plating > --- WEAPON (2) ------- Heavy Assault Rifle Improved Assault Rifle > --- INVENTORY (20) --- Ion Engine Light Treads Light Treads Light Treads Light Treads Large Storage Unit High-capacity Matter Pod (200) Improved Sensor Array Signal Interpreter Heavy Armor Plating Makeshift Hacking Suite Heavy Assault Rifle Autogun Autogun Shotgun Mini Grenade Launcher Mini Grenade Launcher Datajack Katana Peak State ------------ > --- POWER ------------ Improved Ion Engine > --- PROPULSION ------- Light Treads Improved Treads > --- UTILITY ---------- High-capacity Storage Unit High-capacity Storage Unit Transmission Jammer Hardened Light Armor Plating > --- WEAPON ----------- Heavy Assault Rifle Improved Assault Rifle > --- INVENTORY -------- Ion Engine Light Treads Light Treads Light Treads Light Treads Large Storage Unit High-capacity Matter Pod Improved Sensor Array Signal Interpreter Heavy Armor Plating Makeshift Hacking Suite Heavy Assault Rifle Autogun Autogun Shotgun Mini Grenade Launcher Mini Grenade Launcher Datajack [Rating: 20] Favorites ----------- Power Ion Engine Engine Ion Engine Propulsion Aluminum Leg Treads Light Treads Leg Aluminum Leg Utility High-capacity Storage Unit Device Transmission Jammer Storage High-capacity Storage Unit Processor Targeting Computer Protection Hardened Light Armor Plating Weapon Autogun Ballistic Gun Autogun Launcher Grenade Launcher Build | -11 -10 -10 -9 -9 -9 ------- Run | Scr Mat Min Mat Min Exi Slots Evolved 2 | . . . 2 . . Power . | . . . . . . Propulsion . | . . . . . . Utility 2 | . . . 2 . . Weapon . | . . . . . . Parts Attached 34 | . 12 1 19 2 . Power 2 | . . 1 1 . . Engine 2 | . . 1 1 . . Core . | . . . . . . Reactor . | . . . . . . Propulsion 13 | . 4 . 8 1 . Treads 10 | . 2 . 7 1 . Leg 3 | . 2 . 1 . . Wheel . | . . . . . . Hover . | . . . . . . Flight . | . . . . . . Utility 11 | . 4 . 6 1 . Device 1 | . . . 1 . . Storage 5 | . 4 . 1 . . Processor 1 | . . . 1 . . Hackware . | . . . . . . Protection 4 | . . . 3 1 . Artifact . | . . . . . . Weapon 8 | . 4 . 4 . . Energy Gun . | . . . . . . Energy Cannon . | . . . . . . Ballistic Gun 7 | . 3 . 4 . . Ballistic Cannon . | . . . . . . Launcher 1 | . 1 . . . . Special Weapon . | . . . . . . Impact Weapon . | . . . . . . Slashing Weapon . | . . . . . . Piercing Weapon . | . . . . . . Special Melee Weapon . | . . . . . . Unidentified Prototypes 1 | . . . 1 . . Parts Lost 2 | . 1 1 . . . Power 1 | . . 1 . . . Propulsion 1 | . 1 . . . . Utility . | . . . . . . Weapon . | . . . . . . Highest Loss Streak 1 | . 1 1 . . . Average Slot Usage (%) 97 | . 99 100 93 100 100 Engine 12 | . 14 14 11 11 11 Treads 12 | . 21 . 7 22 22 Leg 11 | . 6 28 13 . . Storage 24 | . 27 28 23 22 22 Protection 9 | . . . 11 20 22 Ballistic Gun 23 | . 27 28 22 22 22 Naked Turns . | . . . . . . Heaviest Build 91 | 10 57 59 91 85 85 Greatest Support 43 | 20 40 20 43 43 43 Greatest Overweight (x) 4 | . 2 2 4 1 1 Average Overweight (x) 1 | . 1 2 2 1 1 Largest Inventory Capacity 26 | 6 18 18 26 20 20 Average Capacity 19 | 6 16 18 21 20 20 Most Carried 20 | 6 17 18 20 20 20 Average Carried 17 | 6 12 16 19 20 20 Final Capacity 20 | 6 18 18 20 20 20 Final Carried 20 | 6 16 18 20 20 20 Class Distribution -------------------- 66% | Hauler-Mutant 33% | Mutant Dominant Class ---------------- Mutant | -10/Materials Mutant | -10/Mines Hauler-Mutant | -9/Materials Hauler-Mutant | -9/Mines Hauler-Mutant | -9/Exiles Resources | -11 -10 -10 -9 -9 -9 ----------- Run | Scr Mat Min Mat Min Exi Matter Collected 1623 | 200 366 153 848 56 . Remotely . | . . . . . . Salvage Created 1931 | . 540 131 1081 179 . Parts 121 | . 38 12 62 9 . Haulers Intercepted 1 | . 1 . . . . Recyclers Shooed 2 | . . 1 1 . . Parts Field Recycled . | . . . . . . Retrieved Matter . | . . . . . . Parts Self-Destructed . | . . . . . . Prevented . | . . . . . . Kills | -11 -10 -10 -9 -9 -9 ------- Run | Scr Mat Min Mat Min Exi Combat Hostiles Destroyed 45 | . 12 6 23 4 . Guns 42 | . 9 6 23 4 . AOE 3 | . 3 . . . . Classes Destroyed 8 | . 5 . 2 1 . Worker 2 | . 1 . 1 . . Hauler 1 | . 1 . . . . Watcher 5 | . 3 . 2 . . Swarmer 9 | . 3 4 2 . . Grunt 26 | . 9 2 13 2 . Brawler 1 | . . . . 1 . Duelist 2 | . . . 1 1 . Sentry 7 | . . . 7 . . Best Kill Streak 5 | . 5 3 3 2 . Combat Bots Only 3 | . 3 3 3 2 . Max Kills in Single Turn 2 | . 2 2 2 1 . Gunslinging 1 | . . 1 . . . Exploded 1 | . 1 . . . . Melee . | . . . . . . Uniques/NPCs Destroyed . | . . . . . . Combat | -11 -10 -10 -9 -9 -9 -------- Run | Scr Mat Min Mat Min Exi Damage Taken 1727 | . 551 111 1019 46 . Core 241 | . 99 36 106 . . Absorbed by Shields . | . . . . . . Core Remaining (%) 73 | 100 . 46 . . . Volleys Fired 134 | . 44 8 76 6 . Largest 2 | . 2 2 2 2 . Hottest 46 | . 46 46 46 46 . Shots Fired 265 | . 85 16 152 12 . Gun 262 | . 82 16 152 12 . Cannon . | . . . . . . Launcher 3 | . 3 . . . . Special . | . . . . . . Kinetic 262 | . 82 16 152 12 . Thermal . | . . . . . . Explosive 3 | . 3 . . . . Electromagnetic . | . . . . . . Robot Hit Streak 14 | . 12 10 14 5 . Robot Miss Streak 2 | . 2 1 2 1 . Penetration Max . | . . . . . . Secondary Targets 3 | . . 2 1 . . Max Gunslinging Chain 1 | . . 1 1 . . Shots Hit Robots 188 | . 58 11 110 9 . Core Hits 84 | . 28 8 42 6 . Critical Hits 2 | . 2 . . . . Critical Kills 1 | . 1 . . . . Critical Parts Destroyed 1 | . 1 . . . . Melee Attacks . | . . . . . . Impact . | . . . . . . Slashing . | . . . . . . Piercing . | . . . . . . Sneak Attacks . | . . . . . . Combat Hostiles . | . . . . . . Follow-up Attacks . | . . . . . . Damage Inflicted 3035 | . 1028 174 1702 131 . Guns 2761 | . 774 174 1682 131 . Cannons . | . . . . . . Explosions 242 | . 242 . . . . Melee . | . . . . . . Ramming 32 | . 12 . 20 . . Kinetic 2761 | . 774 174 1682 131 . Thermal . | . . . . . . Explosive 242 | . 242 . . . . Electromagnetic . | . . . . . . Impact . | . . . . . . Slashing . | . . . . . . Piercing . | . . . . . . Highest Corruption . | . . . . . . Average Corruption . | . . . . . . Corruption Purged . | . . . . . . Overload Shots . | . . . . . . Overflow Damage 2 | . 2 . . . . Projectiles . | . . . . . . Explosions 2 | . 2 . . . . Melee . | . . . . . . Knockbacks . | . . . . . . Impact . | . . . . . . Kinetic . | . . . . . . Secondary . | . . . . . . Self-Inflicted Damage 3 | . 3 . . . . Shots . | . . . . . . Rammed 3 | . 1 . 1 1 . Targets Rammed 4 | . 2 . 1 1 . Kicked 1 | . 1 . . . . Crushed . | . . . . . . Highest Temperature 126 | . 30 21 126 9 . Average Temperature 20 | . 12 7 24 4 . Received Heat Transfer 630 | . 180 42 402 6 . Siege Activations . | . . . . . . Robots Corrupted . | . . . . . . Combat Hostiles . | . . . . . . Parts Fried . | . . . . . . Impact Corruptions . | . . . . . . Robots Melted . | . . . . . . Combat Hostiles . | . . . . . . Parts Melted . | . . . . . . Heat Transferred . | . . . . . . Parts Sabotaged . | . . . . . . Parts Stolen . | . . . . . . Parts Stripped . | . . . . . . Power Chain Reactions . | . . . . . . Missiles Intercepted . | . . . . . . Alert | -11 -10 -10 -9 -9 -9 ------- Run | Scr Mat Min Mat Min Exi Peak Influence 413 | . 205 129 413 290 . Initial 160 | . . 19 . 160 . Average 78 | . 44 51 92 105 . Maximum Alert Level 2 | . 1 . 2 1 . Low Security (%) 87 | 100 99 100 81 77 . Level 1 11 | . . . 16 22 . Level 2 . | . . . 1 . . Level 3 . | . . . . . . Level 4 . | . . . . . . Level 5 . | . . . . . . High Security . | . . . . . . Max Security . | . . . . . . Squads Dispatched 9 | . 4 . 5 . . Investigation 5 | . 3 . 2 . . Extermination . | . . . . . . Reinforcement 4 | . 1 . 3 . . Assault . | . . . . . . Garrison . | . . . . . . Intercept . | . . . . . . Construction Impeded . | . . . . . . Haulers Reinforced . | . . . . . . Stealth | -11 -10 -10 -9 -9 -9 --------- Run | Scr Mat Min Mat Min Exi Distress Signals 4 | . 1 . 3 . . Communications Jammed . | . . . . . . Distress Signals . | . . . . . . Times Spotted 74 | . 23 7 40 4 . Peak Tracking Total 4 | . 4 3 4 2 . Tactical Retreats 5 | . 2 . 3 . . Traps | -11 -10 -10 -9 -9 -9 ------- Run | Scr Mat Min Mat Min Exi Traps Triggered 3 | . 2 . 1 . . Indirectly . | . . . . . . Trap Hack Attempts . | . . . . . . Triggered . | . . . . . . Disarmed . | . . . . . . Reprogrammed . | . . . . . . Reused . | . . . . . . Traps Extracted . | . . . . . . Installed . | . . . . . . Triggered . | . . . . . . Machines | -11 -10 -10 -9 -9 -9 ---------- Run | Scr Mat Min Mat Min Exi Machines Disabled 7 | . 1 4 1 1 . Max in Single Turn 1 | . 1 1 1 1 . Machines Sabotaged . | . . . . . . Garrisons Compromised . | . . . . . . Overloaded Fab Kills . | . . . . . . Fab Network Shutdowns . | . . . . . . Hacking | -11 -10 -10 -9 -9 -9 --------- Run | Scr Mat Min Mat Min Exi Machines Accessed 21 | . 9 1 9 . 2 Terminals 14 | . 7 1 6 . . Fabricators . | . . . . . . Repair Stations 2 | . . . 2 . . Recycling Units 3 | . 2 . 1 . . Scanalyzers . | . . . . . . Garrison Access . | . . . . . . Total Hacks 62 | . 28 4 28 . 2 Successful 43 | . 19 2 20 . 2 Failed 18 | . 8 2 8 . . Catastrophic 1 | . . . 1 . . Database Lockouts 1 | . 1 . . . . Manual 41 | . 21 4 15 . 1 Terminals 49 | . 25 4 20 . . Fabricators . | . . . . . . Repair Stations 6 | . . . 6 . . Recycling Units 5 | . 3 . 2 . . Scanalyzers . | . . . . . . Garrison Access . | . . . . . . Terminal Hacks 17 | . 7 2 6 . 2 Record 1 | . . . . . 1 Robot Analysis 4 | . 1 2 1 . . Prototype ID Bank 3 | . 2 . 1 . . Emergency Access Points 1 | . 1 . . . . Alert Level 3 | . 1 . 2 . . Unreport Threat 2 | . 1 . 1 . . Hauler Manifests 2 | . 1 . 1 . . EX-Prototype ID Bank 1 | . . . . . 1 Fabricator Hacks . | . . . . . . Repair Station Hacks 5 | . . . 5 . . Scan Component 3 | . . . 3 . . Repair 2 | . . . 2 . . Recycling Unit Hacks 2 | . 1 . 1 . . Report Inventory 2 | . 1 . 1 . . Scanalyzer . | . . . . . . Garrison Access Hacks . | . . . . . . Unauthorized Hacks 19 | . 11 . 8 . . Terminals 16 | . 9 . 7 . . Track 10 | . 6 . 4 . . Botnet 5 | . 2 . 3 . . Operators 1 | . 1 . . . . Fabricators . | . . . . . . Repair Stations . | . . . . . . Recycling Units 3 | . 2 . 1 . . Tunnel 3 | . 2 . 1 . . Scanalyzers . | . . . . . . Garrison Access . | . . . . . . Data Cores Recovered . | . . . . . . Used . | . . . . . . Hacking Detections 15 | . 6 1 8 . . Full Trace Events . | . . . . . . Feedback Events . | . . . . . . Feedback Blocked . | . . . . . . Robot Schematics Acquired . | . . . . . . Robots Built . | . . . . . . Matter . | . . . . . . Time . | . . . . . . Total Robot Build Rating . | . . . . . . Part Schematics Acquired . | . . . . . . Parts Built . | . . . . . . Matter . | . . . . . . Time . | . . . . . . Total Part Build Rating . | . . . . . . Parts Repaired 2 | . . . 2 . . Time 58 | . . . 58 . . Parts Recycled . | . . . . . . Recycled Matter . | . . . . . . Retrieved Matter . | . . . . . . Retrieved Components . | . . . . . . Parts Scanalyzed . | . . . . . . Part Schematics Acquired . | . . . . . . Parts Damaged . | . . . . . . Bothacking | -11 -10 -10 -9 -9 -9 ------------ Run | Scr Mat Min Mat Min Exi Used RIF Installer . | . . . . . . Robots Hacked . | . . . . . . Non-combat . | . . . . . . Combat . | . . . . . . Robot Hacks Applied . | . . . . . . Relay Couplers Released . | . . . . . . Robots Rewired . | . . . . . . Allies Hacked . | . . . . . . Hacks Repelled . | . . . . . . Allies | -11 -10 -10 -9 -9 -9 -------- Run | Scr Mat Min Mat Min Exi Total Allies 2 | . . 2 . . . Largest Group 2 | . . 2 1 . . Highest-Rated Group 44 | . . 44 31 . . Highest-Rated Ally 31 | . . 31 31 . . Total Orders . | . . . . . . Ally Attacks 18 | . . 12 6 . . Total Damage 198 | . . 72 126 . . Kills 6 | . . 2 4 . . Allies Corrupted . | . . . . . . Allies Melted . | . . . . . . Intel | -11 -10 -10 -9 -9 -9 ------- Run | Scr Mat Min Mat Min Exi Robot Analysis Total 4 | . 1 2 1 . . Derelict Logs Recovered 3 | . . 1 . 2 . Drone Launches . | . . . . . . Drone Recoveries . | . . . . . . Exploration | -11 -10 -10 -9 -9 -9 ------------- Run | Scr Mat Min Mat Min Exi Turns Passed 8023 | 2 1787 929 3674 1150 481 Spaces Moved 2860 | 2 731 486 751 623 267 Core . | . . . . . . Treads 1879 | . 554 . 435 623 267 Legs 981 | 2 177 486 316 . . Wheels . | . . . . . . Hover . | . . . . . . Flight . | . . . . . . Fastest Speed 120 | 120 160 180 180 180 180 Average Speed 188 | 120 177 180 213 180 180 Slowest Speed 240 | 120 180 180 240 180 180 Overloaded Moves . | . . . . . . Propulsion Burnouts . | . . . . . . Robots Hopped . | . . . . . . Cave-ins Triggered . | . . . . . . Exploration Rate (%) 71 | 2 95 99 68 99 68 Regions Visited 5 Branch Regions 3 Pre-discovered Areas 4 | . 2 . 1 . 1 Known Exits Taken . | . . . . . . Unknown Exits Taken 5 | 1 1 1 1 1 . Scrap Searched 2 | . . 1 . 1 . Spaces Dug . | . . . . . . Terrain Destroyed 33 | . 33 . . . . Melee . | . . . . . . Projectile . | . . . . . . AOE 33 | . 33 . . . . Terrain Rammed . | . . . . . . Walls Destroyed . | . . . . . . Machines Disabled . | . . . . . . Actions | -11 -10 -10 -9 -9 -9 --------- Run | Scr Mat Min Mat Min Exi Total 5275 | 1 1146 528 2693 640 267 Wait 2183 | . 340 31 1805 7 . Move 2855 | 1 730 485 750 622 267 Hop . | . . . . . . Pick Up 29 | . 12 3 14 . . Fast Attach 9 | . 1 . 7 1 . Attach 4 | . 1 1 2 . . Detach 4 | . . . 4 . . Swap 21 | . 10 . 10 1 . Drop 32 | . 6 . 24 2 . Fire 134 | . 44 8 76 6 . Melee . | . . . . . . Ram . | . . . . . . Kick 2 | . 2 . . . . Crush 2 | . . . 1 1 . Escape Stasis . | . . . . . . Rewire . | . . . . . . Trap . | . . . . . . Miscellaneous . | . . . . . . Route ------- -11/Scrapyard -10/Materials (discovered 4 exits: *Mat x3 / *Min) -10/Mines (discovered 2 exits: *Mat x2) -9/Materials (discovered 3 exits: *Mat x2 / [*Min]) -9/Mines (discovered 3 exits: *Mat x2 / *Exi) -9/Exiles History --------- Turn | Location | Event 1 | -11/Scrapyard | Discovered new exit (range 1) 3 | -11/Scrapyard | Entered Materials 18 | -10/Materials | Central database locked down 244 | -10/Materials | Discovered new exit (range 4) 309 | -10/Materials | Build established: Mutant 720 | -10/Materials | Discovered new exit (range 16) 1225 | -10/Materials | Discovered new exit (range 16) 1571 | -10/Materials | Discovered new exit (range 10) 1790 | -10/Materials | Entered Mines 1799 | -10/Mines | Discovered new exit (range 6) 1835 | -10/Mines | Met a Derelict bent on vengeance 2017 | -10/Mines | Core integrity fell below 50% 2095 | -10/Mines | Discovered new exit (range 6) 2719 | -10/Mines | Entered Materials 2719 | -9/Materials | Accompanied by 1 ally 2719 | -9/Materials | Evolved 2 slots: Utility x2 2724 | -9/Materials | Led the pair of lost Derelicts to an unsafe place 3022 | -9/Materials | Build established: Hauler-Mutant 3142 | -9/Materials | Repaired Autogun 5369 | -9/Materials | Discovered new exit (range 16) 5710 | -9/Materials | Repaired Lgt. Treads 6117 | -9/Materials | Discovered new exit (range 16) 6381 | -9/Materials | Discovered new exit (range 8) 6393 | -9/Materials | Entered Mines 6516 | -9/Mines | Deemed a non-threat by the Exiles lab entrance 6516 | -9/Mines | Discovered new exit (range 5) 6607 | -9/Mines | Discovered new exit (range 14) 6683 | -9/Mines | Identified exit to Materials 7061 | -9/Mines | Learned location of 1 exit from Materials 7543 | -9/Mines | Entered Exiles 7588 | -9/Exiles | Met 8R-AWN 7617 | -9/Exiles | Met EX-HEX 7714 | -9/Exiles | Met EX-DEC 7758 | -9/Exiles | Learned location of Zion (-6) 7907 | -9/Exiles | Met EX-BIN 7927 | -9/Exiles | Aligned with FarCom system 7929 | -9/Exiles | Given EX-Vault access code 7979 | -9/Exiles | Opened EX-Vault 8024 | -9/Exiles | Self-destructed Last Messages --------------- Modified TNC 0b10 Alert Chip Cloak of Protection Skeleton Box Trap Reconfigurator Supersonic Drone Bay Army-in-a-Box PSU Rigger Chronowheel AWS/Thermal Latent Energy Streamer Gui. Plasma Cannon Firepult YOLO Cannon AWS/Gauss XL Autogun Array AWS/Autocannon Field Lobotomy Kit Longsword +1 Deploy-a-Sentry Map ----- +----------------------------------------------------+ | | | | | | | | | | | | | | | | | | | | | | | | | | | | | | | | | | | | | | | | | | | | | ????????????????????#########????????????????????? | | ????????????????????# &&#????????????????????? | | ????????????????????# ] ] &#????????????????????? | | ????????????????????# @ #????????????????????? | | ????????????????????# X#????????????????????? | | ????????????????????## ##????????????????????? | | ????????????????????#X #?????????????????????? | | ????????????????????## #?????????????????????? | | ?????????????????????# #?????????????????????? | | ?????????????????????# #???###???????????????? | | ?????????????????????# #??"""""??????????????? | | ?????????????????????# ## """??????????????? | | ?????????????????????# X""??????????????? | | ?????????????????????# ## """??????????????? | | ??????????????#####??# #??"""""??????????????? | | ?????????????#""""""?# #???###???????????????? | | ?????????????#"""" ## #?????????????????????? | | ?????????????#""X" #?????????????????????? | | ?????????????#" #?????????????????????? | | ?????????????#" ## #?????????????????????? | | ?????????????#""""""?# #?#########???????????? | | ?????????????##"####?# #?#"""""""#???????????? | | ????????????? ??????# #?#"""""""#???????????? | | ????????????""???????# #?#"""""""#???????????? | | ????????????????????## ###"" """"#???????????? | | ????????????????????#" """"#???????????? | | ????????????????????#" """#???????????? | | ????????????????????#" """#???????????? | +----------------------------------------------------+ Best States ------------- Heat Dissipation 28 Energy Generation 12 Energy Capacity 265 Matter Stores 300 Matter Capacity 300 Sight Range 16 Terrain Scan Density 10 Jamming Range 8 Armor Coverage 600 Evasion (%) 40 Targeting Accuracy 5 Recoil Reduction 2 Item Schematics ----------------- None Robot Schematics ------------------ None Fabricated ------------ Nothing Alien Tech Used ----------------- None Achievements -------------- None Challenges ------------ None Game ------ Seed FusionWardroneComputer Manual? 0 Play Time 00:28:12 Cumulative 263.0 hours Start 2021.02.24 @ 02:56:51 End 2021.02.25 @ 19:32:42 Sessions 4 Manual Loads 0 Difficulty Rogue Special Mode None Game No. 183 Rogue 183 Adventurer 0 Explorer 0 Win Type - Total 6 Types 6/0/0/0/0/0/0/0/0 Lore% 59 Gallery% 67 Achievement% 51 Wizard Run 0 Options --------- ASCII 1 Keyboard 1 Movement Arrows Keybinds 0 Fullscreen 1 Font 24/Smallcaps Map View 76x50 Tactical HUD 1 Map Filters NONE Filters NONE Steam 1 RUN: 2d26fab2-5664-4b62-8246-657385bda06e